[Event "Titled Tuesday Blitz January 31 Early 2023"]
[White "Torres Dominguez, David"]
[Black "Zacurdajev, Dmitry"]
[WhiteFideId "2220857"]
[BlackFideId "4196309"]
[WhiteElo "1994"]
[BlackElo "2273"]
[Result "0-1"]
[Round "04"]
[TimeControl "180+2"]
[Date "2023.01.31"]
[WhiteClock "0:00:04"]
[BlackClock "0:00:10"]

1. e4 {[%clk 0:03:00]}  c6 {[%clk 0:03:00]} 2. Nf3 {[%clk 0:02:58]}  d5 {[%clk 0:03:01]} 3. d3 {[%clk 0:02:58]}  Qc7 {[%clk 0:02:55]} 4. Be2 {[%clk 0:02:57]}  e5 {[%clk 0:02:54]} 5. O-O {[%clk 0:02:55]}  Nf6 {[%clk 0:02:53]} 6. Nbd2 {[%clk 0:02:52]}  Be7 {[%clk 0:02:53]} 7. Re1 {[%clk 0:02:51]}  O-O {[%clk 0:02:54]} 8. Bf1 {[%clk 0:02:45]}  Nbd7 {[%clk 0:02:51]} 9. exd5 {[%clk 0:02:26]}  cxd5 {[%clk 0:02:52]} 10. c4 {[%clk 0:02:20]}  Bc5 {[%clk 0:02:39]} 11. cxd5 {[%clk 0:02:15]}  Nxd5 {[%clk 0:02:40]} 12. Nc4 {[%clk 0:02:14]}  f6 {[%clk 0:02:30]} 13. Ne3 {[%clk 0:02:09]}  N7b6 {[%clk 0:02:20]} 14. d4 {[%clk 0:02:05]}  Bb4 {[%clk 0:02:09]} 15. Nxd5 {[%clk 0:01:59]}  Nxd5 {[%clk 0:02:10]} 16. Qb3 {[%clk 0:01:52]}  Be6 {[%clk 0:02:09]} 17. Re4 {[%clk 0:01:42]}  Qb6 {[%clk 0:01:38]} 18. Bc4 {[%clk 0:01:32]}  Rad8 {[%clk 0:01:21]} 19. dxe5 {[%clk 0:01:25]}  f5 {[%clk 0:01:15]} 20. Be3 {[%clk 0:01:16]}  Bc5 {[%clk 0:00:55]} 21. Bxc5 {[%clk 0:01:13]}  Qxb3 {[%clk 0:00:42]} 22. Bxb3 {[%clk 0:01:12]}  fxe4 {[%clk 0:00:42]} 23. Ng5 {[%clk 0:00:58]}  Rfe8 {[%clk 0:00:32]} 24. Nxe6 {[%clk 0:00:57]}  Rxe6 {[%clk 0:00:33]} 25. Bd6 {[%clk 0:00:58]}  Nf4 {[%clk 0:00:24]} 26. Re1 {[%clk 0:00:55]}  Kf7 {[%clk 0:00:12]} 27. Bxe6+ {[%clk 0:00:53]}  Kxe6 {[%clk 0:00:13]} 28. Rxe4 {[%clk 0:00:53]}  Nd3 {[%clk 0:00:13]} 29. Re2 {[%clk 0:00:50]}  Rc8 {[%clk 0:00:13]} 30. h3 {[%clk 0:00:48]}  Rc1+ {[%clk 0:00:14]} 31. Kh2 {[%clk 0:00:46]}  Rb1 {[%clk 0:00:14]} 32. b3 {[%clk 0:00:42]}  Nf4 {[%clk 0:00:13]} 33. Rc2 {[%clk 0:00:40]}  Nd5 {[%clk 0:00:14]} 34. g3 {[%clk 0:00:32]}  h5 {[%clk 0:00:14]} 35. Kg2 {[%clk 0:00:32]}  g5 {[%clk 0:00:14]} 36. Rc8 {[%clk 0:00:24]}  Rb2 {[%clk 0:00:13]} 37. Re8+ {[%clk 0:00:20]}  Kd7 {[%clk 0:00:10]} 38. Rh8 {[%clk 0:00:18]}  h4 {[%clk 0:00:06]} 39. gxh4 {[%clk 0:00:17]}  gxh4 {[%clk 0:00:07]} 40. Rxh4 {[%clk 0:00:17]}  Rxa2 {[%clk 0:00:06]} 41. Rh7+ {[%clk 0:00:17]}  Kc6 {[%clk 0:00:05]} 42. Rf7 {[%clk 0:00:18]}  Ne3+ {[%clk 0:00:04]} 43. Kf3 {[%clk 0:00:17]}  Nd1 {[%clk 0:00:05]} 44. Kg3 {[%clk 0:00:15]}  Rb2 {[%clk 0:00:05]} 45. h4 {[%clk 0:00:13]}  Rxb3+ {[%clk 0:00:06]} 46. f3 {[%clk 0:00:14]}  Ne3 {[%clk 0:00:03]} 47. Rc7+ {[%clk 0:00:12]}  Kd5 {[%clk 0:00:03]} 48. h5 {[%clk 0:00:07]}  Nf5+ {[%clk 0:00:04]} 49. Kg4 {[%clk 0:00:07]}  Nxd6 {[%clk 0:00:03]} 50. exd6 {[%clk 0:00:07]}  Kxd6 {[%clk 0:00:04]} 51. Rf7 {[%clk 0:00:07]}  Rb1 {[%clk 0:00:04]} 52. Rf4 {[%clk 0:00:04]}  Ke6 {[%clk 0:00:04]} 53. Kg5 {[%clk 0:00:03]}  Rg1+ {[%clk 0:00:04]} 54. Rg4 {[%clk 0:00:03]}  Rh1 {[%clk 0:00:05]} 55. h6 {[%clk 0:00:03]}  Kf7 {[%clk 0:00:05]} 56. Rh4 {[%clk 0:00:03]}  Rg1+ {[%clk 0:00:05]} 57. Kf4 {[%clk 0:00:03]}  Kg8 {[%clk 0:00:04]} 58. h7+ {[%clk 0:00:03]}  Kh8 {[%clk 0:00:05]} 59. Ke4 {[%clk 0:00:03]}  Rg7 {[%clk 0:00:06]} 60. Kd5 {[%clk 0:00:03]}  Rxh7 {[%clk 0:00:07]} 61. Rxh7+ {[%clk 0:00:03]}  Kxh7 {[%clk 0:00:07]} 62. Kc5 {[%clk 0:00:04]}  Kg6 {[%clk 0:00:08]} 63. Kd6 {[%clk 0:00:04]}  Kf5 {[%clk 0:00:08]} 64. Kc7 {[%clk 0:00:04]}  a5 {[%clk 0:00:09]} 65. Kb6 {[%clk 0:00:04]}  a4 {[%clk 0:00:10]} 66. Kxb7 {[%clk 0:00:04]}  a3 {[%clk 0:00:10]} 0-1


[Site "https://www.chess.com"]

[Event "Titled Tuesday Blitz January 31 Early 2023"]
[White "Khamdamova, Afruza"]
[Black "Marin Ramirez, Gerardo"]
[WhiteFideId "14210444"]
[BlackFideId "3901068"]
[WhiteElo "2162"]
[BlackElo "2127"]
[Result "1-0"]
[Round "04"]
[TimeControl "180+2"]
[Date "2023.01.31"]
[WhiteClock "0:02:20"]
[BlackClock "0:00:02"]

1. e4 {[%clk 0:03:00]}  c5 {[%clk 0:02:58]} 2. Nf3 {[%clk 0:03:00]}  d6 {[%clk 0:02:58]} 3. d4 {[%clk 0:03:01]}  cxd4 {[%clk 0:02:59]} 4. Nxd4 {[%clk 0:03:01]}  Nf6 {[%clk 0:02:59]} 5. Nc3 {[%clk 0:03:01]}  a6 {[%clk 0:02:59]} 6. Bg5 {[%clk 0:03:01]}  e6 {[%clk 0:02:58]} 7. f4 {[%clk 0:03:01]}  h6 {[%clk 0:02:58]} 8. Bh4 {[%clk 0:03:02]}  Qb6 {[%clk 0:02:55]} 9. Qd2 {[%clk 0:03:02]}  Qxb2 {[%clk 0:02:34]} 10. Rb1 {[%clk 0:03:01]}  Qa3 {[%clk 0:02:32]} 11. f5 {[%clk 0:03:02]}  Be7 {[%clk 0:02:19]} 12. fxe6 {[%clk 0:03:01]}  fxe6 {[%clk 0:02:17]} 13. Bc4 {[%clk 0:03:01]}  Nc6 {[%clk 0:00:41]} 14. Nxe6 {[%clk 0:02:41]}  Bxe6 {[%clk 0:00:32]} 15. Bxe6 {[%clk 0:02:41]}  Nxe4 {[%clk 0:00:18]} 16. Nxe4 {[%clk 0:02:40]}  Bxh4+ {[%clk 0:00:18]} 17. g3 {[%clk 0:02:40]}  Be7 {[%clk 0:00:10]} 18. O-O {[%clk 0:02:27]}  Qa5 {[%clk 0:00:02]} 19. Qf2 {[%clk 0:02:20]} 1-0


[Site "https://www.chess.com"]

[Event "Titled Tuesday Blitz January 31 Early 2023"]
[White "Michalski, Olaf"]
[Black "Donskov, Anatoly"]
[WhiteFideId "1106740"]
[BlackFideId "24143413"]
[WhiteElo "2273"]
[BlackElo "2279"]
[Result "0-1"]
[Round "04"]
[TimeControl "180+2"]
[Date "2023.01.31"]
[WhiteClock "0:00:18"]
[BlackClock "0:01:07"]

1. d4 {[%clk 0:03:00]}  d5 {[%clk 0:03:00]} 2. c4 {[%clk 0:03:01]}  dxc4 {[%clk 0:03:00]} 3. Nf3 {[%clk 0:03:00]}  Nf6 {[%clk 0:03:00]} 4. e3 {[%clk 0:03:00]}  e6 {[%clk 0:03:01]} 5. Bxc4 {[%clk 0:03:00]}  c5 {[%clk 0:03:01]} 6. O-O {[%clk 0:02:57]}  a6 {[%clk 0:03:02]} 7. a4 {[%clk 0:02:57]}  cxd4 {[%clk 0:03:00]} 8. exd4 {[%clk 0:02:57]}  Be7 {[%clk 0:02:59]} 9. Nc3 {[%clk 0:02:57]}  O-O {[%clk 0:02:57]} 10. Bg5 {[%clk 0:02:55]}  Nc6 {[%clk 0:02:56]} 11. Re1 {[%clk 0:02:54]}  Na5 {[%clk 0:02:55]} 12. Bd3 {[%clk 0:02:40]}  Nc6 {[%clk 0:02:55]} 13. a5 {[%clk 0:02:28]}  Nb4 {[%clk 0:02:39]} 14. Bc4 {[%clk 0:02:04]}  Qc7 {[%clk 0:02:21]} 15. Qb3 {[%clk 0:01:58]}  Nc2 {[%clk 0:02:16]} 16. Bxe6 {[%clk 0:01:24]}  Nxa1 {[%clk 0:02:09]} 17. Bxf7+ {[%clk 0:01:22]}  Rxf7 {[%clk 0:02:01]} 18. Rxa1 {[%clk 0:01:22]}  Qd6 {[%clk 0:01:45]} 19. Ne5 {[%clk 0:01:13]}  Be6 {[%clk 0:01:43]} 20. Qxb7 {[%clk 0:01:13]}  Rb8 {[%clk 0:01:43]} 21. Qa7 {[%clk 0:00:33]}  Rff8 {[%clk 0:01:39]} 22. Ne4 {[%clk 0:00:28]}  Qd5 {[%clk 0:01:07]} 23. Qxe7 {[%clk 0:00:18]}  Nxe4 {[%clk 0:01:07]} 0-1


[Site "https://www.chess.com"]

[Event "Titled Tuesday Blitz January 31 Early 2023"]
[White "Tuleyeva-Aketayeva, Dana"]
[Black "Bouget, Alexandre"]
[WhiteFideId "13701932"]
[BlackFideId "681318"]
[WhiteElo "2130"]
[BlackElo "2267"]
[Result "0-1"]
[Round "04"]
[TimeControl "180+2"]
[Date "2023.01.31"]
[WhiteClock "0:00:11"]
[BlackClock "0:00:39"]

1. d4 {[%clk 0:03:00]}  c6 {[%clk 0:02:44]} 2. Nf3 {[%clk 0:03:00]}  d5 {[%clk 0:02:42]} 3. g3 {[%clk 0:03:01]}  Nd7 {[%clk 0:02:40]} 4. Bg2 {[%clk 0:03:01]}  g6 {[%clk 0:02:40]} 5. O-O {[%clk 0:03:01]}  Bg7 {[%clk 0:02:41]} 6. c4 {[%clk 0:03:01]}  dxc4 {[%clk 0:02:37]} 7. Na3 {[%clk 0:03:01]}  Ngf6 {[%clk 0:02:33]} 8. Nxc4 {[%clk 0:03:00]}  O-O {[%clk 0:02:34]} 9. Re1 {[%clk 0:02:57]}  Nb6 {[%clk 0:02:27]} 10. b3 {[%clk 0:02:37]}  Be6 {[%clk 0:02:25]} 11. Nfe5 {[%clk 0:02:29]}  Qc8 {[%clk 0:02:09]} 12. Ba3 {[%clk 0:02:27]}  Re8 {[%clk 0:02:07]} 13. Bc5 {[%clk 0:02:10]}  Nxc4 {[%clk 0:02:07]} 14. bxc4 {[%clk 0:02:10]}  Nd7 {[%clk 0:02:03]} 15. Nxd7 {[%clk 0:02:07]}  Qxd7 {[%clk 0:02:04]} 16. Rc1 {[%clk 0:01:45]}  b6 {[%clk 0:01:58]} 17. Ba3 {[%clk 0:01:26]}  Bxd4 {[%clk 0:01:51]} 18. e3 {[%clk 0:01:25]}  Bg7 {[%clk 0:01:47]} 19. Qxd7 {[%clk 0:01:23]}  Bxd7 {[%clk 0:01:48]} 20. Red1 {[%clk 0:01:21]}  Rad8 {[%clk 0:01:47]} 21. c5 {[%clk 0:01:20]}  b5 {[%clk 0:01:42]} 22. Bb4 {[%clk 0:01:20]}  Bb2 {[%clk 0:00:59]} 23. Rb1 {[%clk 0:00:47]}  Bf5 {[%clk 0:00:59]} 24. Rxd8 {[%clk 0:00:43]}  Rxd8 {[%clk 0:01:00]} 25. e4 {[%clk 0:00:44]}  Be6 {[%clk 0:00:50]} 26. Rxb2 {[%clk 0:00:26]}  Rd1+ {[%clk 0:00:49]} 27. Bf1 {[%clk 0:00:26]}  Bh3 {[%clk 0:00:40]} 28. Rd2 {[%clk 0:00:11]}  Rxf1# {[%clk 0:00:39]} 0-1


[Site "https://www.chess.com"]

[Event "Titled Tuesday Blitz January 31 Early 2023"]
[White "Adithya A Chullikkad"]
[Black "Tymrakiewicz, Rafal"]
[WhiteFideId "45078734"]
[BlackFideId "1108832"]
[WhiteElo "2259"]
[BlackElo "2144"]
[Result "0-1"]
[Round "04"]
[TimeControl "180+2"]
[Date "2023.01.31"]
[WhiteClock "0:00:08"]
[BlackClock "0:00:08"]

1. d4 {[%clk 0:03:00]}  d5 {[%clk 0:02:58]} 2. c4 {[%clk 0:02:59]}  Bf5 {[%clk 0:02:57]} 3. Nc3 {[%clk 0:02:58]}  e6 {[%clk 0:02:56]} 4. Bf4 {[%clk 0:02:57]}  c6 {[%clk 0:02:55]} 5. e3 {[%clk 0:02:57]}  Nf6 {[%clk 0:02:55]} 6. Nf3 {[%clk 0:02:57]}  Bd6 {[%clk 0:02:46]} 7. Bd3 {[%clk 0:02:42]}  Bxf4 {[%clk 0:02:31]} 8. exf4 {[%clk 0:02:37]}  Bxd3 {[%clk 0:02:14]} 9. Qxd3 {[%clk 0:02:35]}  dxc4 {[%clk 0:02:14]} 10. Qxc4 {[%clk 0:02:36]}  Nbd7 {[%clk 0:02:12]} 11. O-O {[%clk 0:02:34]}  O-O {[%clk 0:02:12]} 12. Rad1 {[%clk 0:02:26]}  Qa5 {[%clk 0:02:09]} 13. Ne5 {[%clk 0:02:23]}  Nb6 {[%clk 0:02:08]} 14. Qc5 {[%clk 0:02:20]}  Qxc5 {[%clk 0:01:57]} 15. dxc5 {[%clk 0:02:20]}  Nbd5 {[%clk 0:01:58]} 16. Nxd5 {[%clk 0:02:19]}  exd5 {[%clk 0:01:57]} 17. f3 {[%clk 0:02:14]}  Rad8 {[%clk 0:01:55]} 18. Rd4 {[%clk 0:02:13]}  Rfe8 {[%clk 0:01:51]} 19. Re1 {[%clk 0:02:06]}  Nd7 {[%clk 0:01:47]} 20. Kf2 {[%clk 0:02:05]}  Nxc5 {[%clk 0:01:44]} 21. Rc1 {[%clk 0:01:53]}  Ne6 {[%clk 0:01:40]} 22. Rb4 {[%clk 0:01:52]}  Nxf4 {[%clk 0:01:37]} 23. g3 {[%clk 0:01:38]}  Rxe5 {[%clk 0:01:33]} 24. gxf4 {[%clk 0:01:38]}  Re7 {[%clk 0:01:33]} 25. f5 {[%clk 0:01:36]}  f6 {[%clk 0:01:33]} 26. h4 {[%clk 0:01:35]}  h5 {[%clk 0:01:30]} 27. a4 {[%clk 0:01:31]}  d4 {[%clk 0:01:22]} 28. Rd1 {[%clk 0:01:30]}  d3 {[%clk 0:01:21]} 29. Re4 {[%clk 0:01:24]}  Kf7 {[%clk 0:01:17]} 30. Ke3 {[%clk 0:01:22]}  Red7 {[%clk 0:01:12]} 31. Kd2 {[%clk 0:01:19]}  Rd5 {[%clk 0:01:12]} 32. Rde1 {[%clk 0:01:19]}  R8d7 {[%clk 0:01:11]} 33. Rf4 {[%clk 0:01:10]}  Rc5 {[%clk 0:01:06]} 34. b4 {[%clk 0:00:56]}  Rc2+ {[%clk 0:01:05]} 35. Ke3 {[%clk 0:00:55]}  Ra2 {[%clk 0:00:56]} 36. Rd1 {[%clk 0:00:50]}  Re7+ {[%clk 0:00:52]} 37. Kxd3 {[%clk 0:00:47]}  Rxa4 {[%clk 0:00:46]} 38. Kc3 {[%clk 0:00:36]}  Ra3+ {[%clk 0:00:45]} 39. Kc4 {[%clk 0:00:34]}  Rae3 {[%clk 0:00:44]} 40. Rdd4 {[%clk 0:00:30]}  R3e5 {[%clk 0:00:38]} 41. Kc3 {[%clk 0:00:24]}  Rc7 {[%clk 0:00:33]} 42. Rd6 {[%clk 0:00:20]}  Ke7 {[%clk 0:00:33]} 43. Rd2 {[%clk 0:00:18]}  c5 {[%clk 0:00:33]} 44. b5 {[%clk 0:00:18]}  Rd7 {[%clk 0:00:28]} 45. Rg2 {[%clk 0:00:17]}  Kf7 {[%clk 0:00:24]} 46. Ra2 {[%clk 0:00:16]}  b6 {[%clk 0:00:23]} 47. Raa4 {[%clk 0:00:16]}  Re3+ {[%clk 0:00:23]} 48. Kc2 {[%clk 0:00:13]}  Re2+ {[%clk 0:00:19]} 49. Kc3 {[%clk 0:00:13]}  Rde7 {[%clk 0:00:18]} 50. Kd3 {[%clk 0:00:12]}  R2e3+ {[%clk 0:00:17]} 51. Kc2 {[%clk 0:00:12]}  Rd7 {[%clk 0:00:16]} 52. Kb2 {[%clk 0:00:11]}  Ke8 {[%clk 0:00:15]} 53. Kc2 {[%clk 0:00:11]}  Kd8 {[%clk 0:00:16]} 54. Rae4 {[%clk 0:00:10]}  Rxe4 {[%clk 0:00:14]} 55. Rxe4 {[%clk 0:00:10]}  Kc7 {[%clk 0:00:14]} 56. Kc3 {[%clk 0:00:09]}  Kb7 {[%clk 0:00:14]} 57. Re3 {[%clk 0:00:09]}  a6 {[%clk 0:00:14]} 58. Kc4 {[%clk 0:00:09]}  Rd4+ {[%clk 0:00:13]} 59. Kb3 {[%clk 0:00:09]}  axb5 {[%clk 0:00:12]} 60. Re7+ {[%clk 0:00:10]}  Ka6 {[%clk 0:00:12]} 61. Rxg7 {[%clk 0:00:10]}  Rxh4 {[%clk 0:00:12]} 62. Rg6 {[%clk 0:00:09]}  Rf4 {[%clk 0:00:12]} 63. Rxf6 {[%clk 0:00:09]}  Rxf3+ {[%clk 0:00:13]} 64. Kb2 {[%clk 0:00:08]}  b4 {[%clk 0:00:13]} 65. Rf8 {[%clk 0:00:08]}  h4 {[%clk 0:00:13]} 66. f6 {[%clk 0:00:08]}  Kb5 {[%clk 0:00:14]} 67. f7 {[%clk 0:00:08]}  h3 {[%clk 0:00:14]} 68. Rh8 {[%clk 0:00:09]}  Rxf7 {[%clk 0:00:13]} 69. Rxh3 {[%clk 0:00:10]}  Rf2+ {[%clk 0:00:14]} 70. Kb1 {[%clk 0:00:09]}  Ka4 {[%clk 0:00:13]} 71. Rh8 {[%clk 0:00:09]}  c4 {[%clk 0:00:12]} 72. Rh3 {[%clk 0:00:07]}  c3 {[%clk 0:00:11]} 73. Rh1 {[%clk 0:00:07]}  Kb3 {[%clk 0:00:11]} 74. Rc1 {[%clk 0:00:07]}  Rb2+ {[%clk 0:00:10]} 75. Ka1 {[%clk 0:00:07]}  Ra2+ {[%clk 0:00:10]} 76. Kb1 {[%clk 0:00:06]}  c2+ {[%clk 0:00:11]} 77. Rxc2 {[%clk 0:00:07]}  Rxc2 {[%clk 0:00:11]} 78. Ka1 {[%clk 0:00:08]}  Rg2 {[%clk 0:00:08]} 0-1


[Site "https://www.chess.com"]

[Event "Titled Tuesday Blitz January 31 Early 2023"]
[White "Delorme, Axel"]
[Black "Osiecki, Stanislaw"]
[WhiteFideId "632023"]
[BlackFideId "1102990"]
[WhiteElo "2483"]
[BlackElo "2055"]
[Result "0-1"]
[Round "04"]
[TimeControl "180+2"]
[Date "2023.01.31"]
[WhiteClock "0:00:03"]
[BlackClock "0:00:38"]

1. e4 {[%clk 0:03:00]}  e6 {[%clk 0:02:57]} 2. d4 {[%clk 0:03:00]}  d5 {[%clk 0:02:55]} 3. Nc3 {[%clk 0:02:59]}  Bb4 {[%clk 0:02:53]} 4. e5 {[%clk 0:02:59]}  c5 {[%clk 0:02:53]} 5. a3 {[%clk 0:02:58]}  Bxc3+ {[%clk 0:02:53]} 6. bxc3 {[%clk 0:02:59]}  Qc7 {[%clk 0:02:53]} 7. Qg4 {[%clk 0:02:56]}  f5 {[%clk 0:02:53]} 8. Qg3 {[%clk 0:02:54]}  cxd4 {[%clk 0:02:52]} 9. cxd4 {[%clk 0:02:47]}  Ne7 {[%clk 0:02:52]} 10. Bd2 {[%clk 0:02:39]}  O-O {[%clk 0:02:52]} 11. Bd3 {[%clk 0:02:37]}  b6 {[%clk 0:02:52]} 12. Ne2 {[%clk 0:02:35]}  Ba6 {[%clk 0:02:51]} 13. Nf4 {[%clk 0:02:34]}  Qd7 {[%clk 0:02:52]} 14. O-O {[%clk 0:02:31]}  Bxd3 {[%clk 0:02:52]} 15. Qxd3 {[%clk 0:02:29]}  Nbc6 {[%clk 0:02:50]} 16. Bb4 {[%clk 0:02:20]}  Nxb4 {[%clk 0:02:44]} 17. axb4 {[%clk 0:02:18]}  a5 {[%clk 0:02:32]} 18. bxa5 {[%clk 0:02:16]}  bxa5 {[%clk 0:02:30]} 19. Ra2 {[%clk 0:02:07]}  a4 {[%clk 0:02:29]} 20. Rfa1 {[%clk 0:02:06]}  Rfc8 {[%clk 0:02:28]} 21. Qg3 {[%clk 0:01:50]}  Rc4 {[%clk 0:02:20]} 22. c3 {[%clk 0:01:36]}  Qc6 {[%clk 0:02:15]} 23. Ne2 {[%clk 0:01:29]}  Rb8 {[%clk 0:01:57]} 24. h4 {[%clk 0:01:17]}  Rb3 {[%clk 0:01:37]} 25. h5 {[%clk 0:01:14]}  h6 {[%clk 0:01:36]} 26. Qh4 {[%clk 0:01:07]}  Kf7 {[%clk 0:01:24]} 27. Qg3 {[%clk 0:00:50]}  Qb5 {[%clk 0:01:07]} 28. Kh2 {[%clk 0:00:48]}  Rb1 {[%clk 0:01:02]} 29. Nf4 {[%clk 0:00:41]}  Rxa1 {[%clk 0:01:00]} 30. Rxa1 {[%clk 0:00:41]}  Qb2 {[%clk 0:00:59]} 31. Re1 {[%clk 0:00:10]}  Qxc3 {[%clk 0:00:56]} 32. Re3 {[%clk 0:00:08]}  Qxd4 {[%clk 0:00:55]} 33. Rf3 {[%clk 0:00:07]}  a3 {[%clk 0:00:52]} 34. Ng6 {[%clk 0:00:04]}  a2 {[%clk 0:00:45]} 35. Nxe7 {[%clk 0:00:01]}  Qh4+ {[%clk 0:00:40]} 36. Qxh4 {[%clk 0:00:02]}  Rxh4+ {[%clk 0:00:39]} 37. Kg3 {[%clk 0:00:03]}  Rg4+ {[%clk 0:00:38]} 0-1


[Site "https://www.chess.com"]

[Event "Titled Tuesday Blitz January 31 Early 2023"]
[White "kiwibobo"]
[Black "matenitian"]
[WhiteElo "2040"]
[BlackElo "2434"]
[Result "0-1"]
[Round "04"]
[TimeControl "180+2"]
[Date "2023.01.31"]
[WhiteClock "0:00:08"]
[BlackClock "0:00:19"]

1. e4 {[%clk 0:03:00]}  e5 {[%clk 0:02:56]} 2. Nf3 {[%clk 0:03:00]}  Nc6 {[%clk 0:02:51]} 3. Bb5 {[%clk 0:03:01]}  a6 {[%clk 0:02:51]} 4. Ba4 {[%clk 0:03:01]}  Nge7 {[%clk 0:02:51]} 5. c3 {[%clk 0:03:00]}  g6 {[%clk 0:02:51]} 6. d4 {[%clk 0:03:00]}  exd4 {[%clk 0:02:51]} 7. cxd4 {[%clk 0:03:00]}  Bg7 {[%clk 0:02:52]} 8. O-O {[%clk 0:03:00]}  O-O {[%clk 0:02:51]} 9. Nc3 {[%clk 0:02:59]}  d5 {[%clk 0:02:48]} 10. e5 {[%clk 0:02:56]}  Bg4 {[%clk 0:02:47]} 11. Be3 {[%clk 0:02:54]}  f6 {[%clk 0:02:41]} 12. Bb3 {[%clk 0:02:20]}  fxe5 {[%clk 0:02:28]} 13. dxe5 {[%clk 0:02:16]}  Nxe5 {[%clk 0:02:26]} 14. Nxd5 {[%clk 0:01:23]}  Kh8 {[%clk 0:02:25]} 15. Nf4 {[%clk 0:01:06]}  Qxd1 {[%clk 0:01:37]} 16. Rfxd1 {[%clk 0:00:46]}  Nxf3+ {[%clk 0:01:34]} 17. gxf3 {[%clk 0:00:45]}  Bxf3 {[%clk 0:01:34]} 18. Rd7 {[%clk 0:00:44]}  Bf6 {[%clk 0:01:08]} 19. Ne6 {[%clk 0:00:33]}  Rfc8 {[%clk 0:00:54]} 20. Nxc7 {[%clk 0:00:25]}  Nf5 {[%clk 0:00:46]} 21. Nxa8 {[%clk 0:00:19]}  Rxa8 {[%clk 0:00:46]} 22. Bf4 {[%clk 0:00:17]}  Bxb2 {[%clk 0:00:42]} 23. Re1 {[%clk 0:00:15]}  Rc8 {[%clk 0:00:38]} 24. Rc7 {[%clk 0:00:13]}  Rxc7 {[%clk 0:00:37]} 25. Bxc7 {[%clk 0:00:14]}  Kg7 {[%clk 0:00:37]} 26. Be5+ {[%clk 0:00:15]}  Bxe5 {[%clk 0:00:37]} 27. Rxe5 {[%clk 0:00:16]}  Kf6 {[%clk 0:00:37]} 28. Rc5 {[%clk 0:00:16]}  h5 {[%clk 0:00:32]} 29. Rc7 {[%clk 0:00:16]}  h4 {[%clk 0:00:31]} 30. Kf1 {[%clk 0:00:15]}  h3 {[%clk 0:00:22]} 31. Rf7+ {[%clk 0:00:15]}  Ke5 {[%clk 0:00:21]} 32. Rh7 {[%clk 0:00:15]}  Bg2+ {[%clk 0:00:20]} 33. Ke2 {[%clk 0:00:15]}  Nd4+ {[%clk 0:00:20]} 34. Kd3 {[%clk 0:00:14]}  Nf3 {[%clk 0:00:20]} 35. Rh6 {[%clk 0:00:10]}  Nxh2 {[%clk 0:00:18]} 36. Rxg6 {[%clk 0:00:11]}  Be4+ {[%clk 0:00:17]} 37. Ke3 {[%clk 0:00:09]}  Bxg6 {[%clk 0:00:18]} 38. f4+ {[%clk 0:00:08]}  Kf6 {[%clk 0:00:18]} 39. Kf2 {[%clk 0:00:08]}  Ng4+ {[%clk 0:00:18]} 40. Kg3 {[%clk 0:00:09]}  h2 {[%clk 0:00:18]} 41. Bd5 {[%clk 0:00:08]}  Bf5 {[%clk 0:00:17]} 42. Bf3 {[%clk 0:00:08]}  b5 {[%clk 0:00:17]} 43. Bb7 {[%clk 0:00:08]}  a5 {[%clk 0:00:17]} 44. Bc6 {[%clk 0:00:08]}  b4 {[%clk 0:00:17]} 45. Bf3 {[%clk 0:00:08]}  Ke6 {[%clk 0:00:17]} 46. Kg2 {[%clk 0:00:08]}  Kd6 {[%clk 0:00:18]} 47. Bxg4 {[%clk 0:00:07]}  Bxg4 {[%clk 0:00:18]} 48. Kxh2 {[%clk 0:00:08]}  Kc5 {[%clk 0:00:18]} 49. Kg3 {[%clk 0:00:08]}  Bf5 {[%clk 0:00:18]} 50. Kf2 {[%clk 0:00:08]}  Bb1 {[%clk 0:00:19]} 51. a4 {[%clk 0:00:07]}  bxa3 {[%clk 0:00:19]} 52. Ke3 {[%clk 0:00:07]}  a2 {[%clk 0:00:19]} 53. Kd2 {[%clk 0:00:08]}  a1=Q {[%clk 0:00:19]} 0-1


[Site "https://www.chess.com"]

[Event "Titled Tuesday Blitz January 31 Early 2023"]
[White "Szente Varga, Fruzsina"]
[Black "Melikhov, Evgeny V."]
[WhiteFideId "712264"]
[BlackFideId "4122046"]
[WhiteElo "2075"]
[BlackElo "2269"]
[Result "0-1"]
[Round "04"]
[TimeControl "180+2"]
[Date "2023.01.31"]
[WhiteClock "0:00:17"]
[BlackClock "0:00:30"]

1. e4 {[%clk 0:03:00]}  c5 {[%clk 0:02:59]} 2. Nf3 {[%clk 0:02:59]}  d6 {[%clk 0:02:59]} 3. d4 {[%clk 0:03:00]}  cxd4 {[%clk 0:02:59]} 4. Qxd4 {[%clk 0:03:00]}  Nc6 {[%clk 0:02:58]} 5. Bb5 {[%clk 0:02:59]}  Bd7 {[%clk 0:02:59]} 6. Qd3 {[%clk 0:02:59]}  a6 {[%clk 0:02:56]} 7. Bxc6 {[%clk 0:02:59]}  Bxc6 {[%clk 0:02:56]} 8. c4 {[%clk 0:03:00]}  Nf6 {[%clk 0:02:48]} 9. Nc3 {[%clk 0:03:00]}  e6 {[%clk 0:02:47]} 10. O-O {[%clk 0:03:00]}  Be7 {[%clk 0:02:46]} 11. b3 {[%clk 0:02:57]}  O-O {[%clk 0:02:45]} 12. Bb2 {[%clk 0:02:57]}  b5 {[%clk 0:02:41]} 13. cxb5 {[%clk 0:02:49]}  axb5 {[%clk 0:02:41]} 14. Nd4 {[%clk 0:02:38]}  Qb6 {[%clk 0:02:21]} 15. Nxc6 {[%clk 0:02:22]}  Qxc6 {[%clk 0:02:20]} 16. Qxb5 {[%clk 0:02:23]}  Qxb5 {[%clk 0:02:19]} 17. Nxb5 {[%clk 0:02:24]}  Nxe4 {[%clk 0:02:19]} 18. f3 {[%clk 0:01:58]}  Nc5 {[%clk 0:02:05]} 19. Rfd1 {[%clk 0:01:57]}  d5 {[%clk 0:02:02]} 20. Bd4 {[%clk 0:01:17]}  Rfc8 {[%clk 0:01:40]} 21. Kf2 {[%clk 0:00:35]}  f6 {[%clk 0:01:18]} 22. Bb2 {[%clk 0:00:24]}  Kf7 {[%clk 0:01:03]} 23. Ke3 {[%clk 0:00:22]}  Rab8 {[%clk 0:00:57]} 24. Nd4 {[%clk 0:00:22]}  e5 {[%clk 0:00:54]} 25. Nf5 {[%clk 0:00:23]}  d4+ {[%clk 0:00:54]} 26. Ke2 {[%clk 0:00:23]}  Ne6 {[%clk 0:00:51]} 27. Rac1 {[%clk 0:00:22]}  g6 {[%clk 0:00:50]} 28. Ng3 {[%clk 0:00:20]}  f5 {[%clk 0:00:48]} 29. Rxc8 {[%clk 0:00:19]}  Rxc8 {[%clk 0:00:48]} 30. Rc1 {[%clk 0:00:20]}  Rxc1 {[%clk 0:00:47]} 31. Bxc1 {[%clk 0:00:21]}  Nc5 {[%clk 0:00:45]} 32. Nf1 {[%clk 0:00:18]}  Ke6 {[%clk 0:00:44]} 33. Nd2 {[%clk 0:00:18]}  Kd5 {[%clk 0:00:44]} 34. Nc4 {[%clk 0:00:19]}  e4 {[%clk 0:00:43]} 35. fxe4+ {[%clk 0:00:20]}  fxe4 {[%clk 0:00:43]} 36. Bf4 {[%clk 0:00:20]}  d3+ {[%clk 0:00:43]} 37. Kd2 {[%clk 0:00:21]}  Ne6 {[%clk 0:00:42]} 38. Nb6+ {[%clk 0:00:20]}  Kc6 {[%clk 0:00:40]} 39. Be3 {[%clk 0:00:21]}  Bb4+ {[%clk 0:00:40]} 40. Kd1 {[%clk 0:00:20]}  Bc5 {[%clk 0:00:37]} 41. Nc4 {[%clk 0:00:21]}  Bxe3 {[%clk 0:00:35]} 42. Nxe3 {[%clk 0:00:22]}  Kc5 {[%clk 0:00:35]} 43. Kd2 {[%clk 0:00:22]}  Kd4 {[%clk 0:00:34]} 44. a4 {[%clk 0:00:22]}  Nc5 {[%clk 0:00:31]} 45. b4 {[%clk 0:00:18]}  Nxa4 {[%clk 0:00:31]} 46. Ng4 {[%clk 0:00:17]}  Nb6 {[%clk 0:00:30]} 47. Nf6 {[%clk 0:00:17]}  Nc4+ {[%clk 0:00:29]} 48. Kd1 {[%clk 0:00:18]}  e3 {[%clk 0:00:30]} 49. Nxh7 {[%clk 0:00:18]}  e2+ {[%clk 0:00:30]} 50. Ke1 {[%clk 0:00:18]}  Ke3 {[%clk 0:00:30]} 51. Ng5 {[%clk 0:00:17]}  d2# {[%clk 0:00:30]} 0-1


[Site "https://www.chess.com"]